{"text_format":"1","workbook":"xlsx","n_sheets":8,"sheets":["Instructions","Summary","JSEEquityDerivMarket","JSEFXDerivMarket","Trading Services","ReferenceData","Maintenance","Sheet1"],"not_rendered":{"charts":0,"images":1,"macros":1,"external_links":0,"defined_names":0,"comments":0,"pivot_tables":0},"unopened":[],"bounds":{"document_bytes":16777216,"sheet_cells":100000,"rows_first":2000,"rows_last":500,"rows_between":2000,"halvings":0,"cell_chars":16384,"cell_head_chars":4096},"cells_cut":0,"cells_raw":0,"read":"whole","date_system":"1900"}

{"sheet":"Instructions","index":0,"n_rows":6,"n_cols":2,"rows_kept":6,"cut":false,"hidden":true,"merged":[]}
[]
[]
[null,"Guide to JSE Bandwidth calculator for ITAC CLTS"]
[]
[null,"1. Use the BandwidthCalculator worksheet (Blue tab below) to specify the number of terminals per market per service"]
[null,"2. The total required bandwidth will be calculated automatically"]

{"sheet":"Summary","index":1,"n_rows":67,"n_cols":9,"rows_kept":67,"cut":false,"hidden":false,"merged":[[1,1,1,9],[9,2,10,2],[13,2,14,2],[16,2,17,2],[19,2,19,4],[27,1,27,9],[38,2,41,2],[38,3,41,3],[48,2,51,2],[59,2,59,4]]}
[]
[null,"Future ITAC: Minimum Recommended Bandwidth"]
[]
[]
[null,null,null,null,null,null,"For Project 1b & Project 1c "]
[null,null,null,null,null,null,{"$f":"ReferenceData!C5","v":"From Q4 2017 (Mbps)"},null,"Service Description"]
[]
[]
[]
[null,null,"JSE Trading and Information Services (Real Time)",null,"Equity Derivatives Market - (EDM for ITaC)",null,{"$f":"JSEEquityDerivMarket!S56","v":0},null,"Bandwith requirements for ITaC EDM"]
[null,null,null,null,"Currency Derivatives Market - (FXM for ITaC)",null,{"$f":"JSEFXDerivMarket!U54","v":0},null,"Bandwith requirements for ITaC FXM"]
[]
[]
[null,null,"JSE Post-Trade Services",null,"Equity Derivatives Market - (EDM for ITaC)",null,{"$f":"JSEEquityDerivMarket!S66","v":""},null,"Bandwith requirements for ITaC EDM"]
[null,null,null,null,"Currency Derivatives Market - (FXM for ITaC)",null,{"$f":"JSEFXDerivMarket!U64","v":""},null,"Bandwith requirements for ITaC FXM"]
[]
[null,null,"JSE End of Day Services",null,"Equity Derivatives Market - (EDM for ITaC)",null,{"$f":"JSEEquityDerivMarket!S76","v":""},null,"Bandwith requirements for ITaC EDM"]
[null,null,null,null,"Currency Derivatives Market - (FXM for ITaC)",null,{"$f":"JSEFXDerivMarket!U74","v":""},null,"Bandwith requirements for ITaC FXM"]
[]
[null,null,"Minimum Recommended Bandwidth",null,null,null,{"$f":"SUM(G8:G18)","v":0}]
[]
[]
[]
[]
[]
[]
[]
[null,"Current Legacy: Minimum Recommended Bandwidth"]
[]
[]
[]
[null,null,null,null,null,null,{"$f":"ReferenceData!C2","v":"Current EDM Dissemination Bandwidth (Mbps)"},null,"Service Description"]
[]
[null,null,{"$f":"#REF!","v":{"$error":"#REF!"}},null,{"$f":"#REF!","v":{"$error":"#REF!"}},null,{"$f":"#REF!","v":{"$error":"#REF!"}}]
[]
[null,null,{"$f":"#REF!","v":{"$error":"#REF!"}},null,{"$f":"#REF!","v":{"$error":"#REF!"}},null,{"$f":"#REF!","v":{"$error":"#REF!"}}]
[]
[null,null,{"$f":"#REF!","v":{"$error":"#REF!"}},null,{"$f":"#REF!","v":{"$error":"#REF!"}},null,{"$f":"#REF!","v":{"$error":"#REF!"}}]
[null,null,"JSE Derivatives Trading and Market Data",null,"Equity Derivatives Market (EDM)",null,{"$f":"JSEEquityDerivMarket!Q25","v":0},null,"Bandwidth for current legacy terminals/interfaces"]
[null,null,null,null,"Interest Rate and Currency Derivatives Market (Current)",null,{"$f":"#REF!","v":{"$error":"#REF!"}}]
[null,null,null,null,"Interest Rate Market (New ITaC)"]
[null,null,null,null,"Currency Derivatives Market (FXM)",null,{"$f":"JSEEquityDerivMarket!Q25","v":0},null,"Bandwidth for current legacy terminals/interfaces"]
[null,null,{"$f":"#REF!","v":{"$error":"#REF!"}},null,"Commodity Derivatives Market",null,{"$f":"#REF!","v":{"$error":"#REF!"}}]
[null,null,{"$f":"#REF!","v":{"$error":"#REF!"}},null,"Global Market",null,{"$f":"#REF!","v":{"$error":"#REF!"}}]
[]
[null,null,"NSX Trading & Information Services (real time)",null,{"$f":"#REF!","v":{"$error":"#REF!"}},null,{"$f":"#REF!","v":{"$error":"#REF!"}}]
[]
[null,null,{"$f":"#REF!","v":{"$error":"#REF!"}},null,{"$f":"#REF!","v":{"$error":"#REF!"}},null,{"$f":"#REF!","v":{"$error":"#REF!"}}]
[null,null,{"$f":"#REF!","v":{"$error":"#REF!"}},null,"Equity Derivatives Market",null,{"$f":"jseequityderivmarket!#REF!","v":{"$error":"#VALUE!"}}]
[null,null,null,null,"Interest Rate and Currency Derivatives Market (Current)",null,{"$f":"#REF!","v":{"$error":"#REF!"}}]
[null,null,null,null,"Interest Rate Market (New ITaC)"]
[null,null,null,null,"Currency Derivatives Market (New ITaC)"]
[null,null,{"$f":"#REF!","v":{"$error":"#REF!"}},null,"Commodity Derivatives Market",null,{"$f":"#REF!","v":{"$error":"#REF!"}}]
[null,null,{"$f":"#REF!","v":{"$error":"#REF!"}},null,"Global Market",null,{"$f":"#REF!","v":{"$error":"#REF!"}}]
[]
[null,null,{"$f":"#REF!","v":{"$error":"#REF!"}},null,{"$f":"#REF!","v":{"$error":"#REF!"}},null,{"$f":"#REF!","v":{"$error":"#REF!"}}]
[null,null,{"$f":"#REF!","v":{"$error":"#REF!"}},null,"Commodity Derivatives Market",null,{"$f":"#REF!","v":{"$error":"#REF!"}}]
[null,null,{"$f":"#REF!","v":{"$error":"#REF!"}},null,"Global Market",null,{"$f":"#REF!","v":{"$error":"#REF!"}}]
[null,null,null,null,null,null,"."]
[null,null,"Minimum Recommended Bandwidth",null,null,null,{"$f":"SUM(G39 + G42)","v":0}]
[]
[]
[]
[]
[null,null,null,null,null,null,"Deficit (Mbps)",null,"Surplus (Mbps)"]
[]
[null,null,null,null,null,null,{"$f":"SUM(G20 - G60)","v":0},null,{"$f":"SUM(G20 - G60)","v":0}]

{"sheet":"JSEEquityDerivMarket","index":2,"n_rows":76,"n_cols":23,"rows_kept":76,"cut":false,"hidden":false,"merged":[[1,1,1,16],[5,2,5,16],[11,2,11,14],[13,2,13,16],[15,2,16,2],[15,4,16,4],[15,6,16,6],[15,8,16,8],[15,10,16,10],[15,12,16,12],[15,14,16,14],[15,16,16,16],[20,2,20,14],[21,2,21,14],[24,2,24,14],[27,1,27,23],[29,1,29,23],[32,2,32,22],[34,18,34,20],[36,18,36,20],[37,18,37,20],[39,2,39,14],[39,18,39,20],[41,2,41,22],[42,2,42,22],[44,2,45,2],[44,4,45,4],[44,6,45,6],[44,8,45,8],[44,10,45,10],[44,12,45,12],[44,14,45,14],[44,18,44,20],[44,22,45,22],[51,2,51,14],[52,2,52,14],[52,18,52,20],[55,2,55,14],[55,18,55,20],[57,1,57,23],[60,18,60,20],[62,18,62,20],[65,2,65,14],[65,18,65,20],[67,1,67,23],[70,18,70,20],[72,18,72,20],[75,2,75,14],[75,18,75,20]]}
[]
[null,"Current Equity Derivatives Market Requirements"]
[]
[]
[]
[null,null,"Current Derivatives Trading Data"]
[]
[null,null,"Service",null,"Protocols",null,{"$f":"ReferenceData!$C$2","v":"Current EDM Dissemination Bandwidth (Mbps)"},null,{"$f":"ReferenceData!$C$3","v":"From 26 September 2016 (Mbps)"},null,{"$f":"ReferenceData!$C$4","v":"From Q2/Q3 2017 (Mbps)"},null,{"$f":"ReferenceData!$C$5","v":"From Q4 2017 (Mbps)"},null,"# Nutron Terminals",null,{"$f":"CONCATENATE(ReferenceData!$C$2, CHAR(10), ReferenceData!$F$2)","v":"Current EDM Dissemination Bandwidth (Mbps)\n(Per Terminal)"}]
[]
[null,null,"Current Number of legacy Nutron Terminals",null,".",null,0.256,null,0.532,null,0.825,null,0.825,null,null,null,{"$f":"IF($O10>0, G10*$O10, \"\")","v":""}]
[]
[null,null,"SubTotal",null,null,null,null,null,null,null,null,null,null,null,null,null,{"$f":"Q10","v":""}]
[]
[null,null,"Current Derivatives Dissemination Data"]
[]
[null,null,"Service",null,"Protocols",null,{"$f":"ReferenceData!$C$2","v":"Current EDM Dissemination Bandwidth (Mbps)"},null,{"$f":"ReferenceData!$C$3","v":"From 26 September 2016 (Mbps)"},null,{"$f":"ReferenceData!$C$4","v":"From Q2/Q3 2017 (Mbps)"},null,{"$f":"ReferenceData!$C$5","v":"From Q4 2017 (Mbps)"},null,"Number of Listeners",null,{"$f":"CONCATENATE(ReferenceData!$C$2, CHAR(10), ReferenceData!$F$2)","v":"Current EDM Dissemination Bandwidth (Mbps)\n(Per Terminal)"}]
[]
[]
[null,null,"Current Number of legacy Derivatives Dissemination Listeners",null,".",null,1,null,1,null,1.25,null,1.25,null,null,null,{"$f":"IF($O19>0, G19*$O19, \"\")","v":""}]
[]
[null,null,"SubTotal",null,null,null,null,null,null,null,null,null,null,null,null,null,{"$f":"Q19","v":""}]
[null,null,"Combined SubTotal",null,null,null,null,null,null,null,null,null,null,null,null,null,{"$f":"SUM(Q12,Q21)","v":0}]
[]
[]
[null,null,"Current Equity Derivatives Bandwidth requirements: SubTotal",null,null,null,null,null,null,null,null,null,null,null,null,null,{"$f":"Q22","v":0}]
[]
[]
[null,"Equity Derivatives Market Bandwidth for ITaC Project"]
[]
[null,"JSE Trading and Information Services (Real time)"]
[]
[]
[null,null,"Private Trading Data"]
[]
[null,null,"Service",null,"Protocols",null,{"$f":"ReferenceData!$C$2","v":"Current EDM Dissemination Bandwidth (Mbps)"},null,{"$f":"ReferenceData!$C$3","v":"From 26 September 2016 (Mbps)"},null,{"$f":"ReferenceData!$C$4","v":"From Q2/Q3 2017 (Mbps)"},null,{"$f":"ReferenceData!$C$5","v":"From Q4 2017 (Mbps)"},null,"Number of Interfaces / CompIDs",null,"Order Rate\n(Between 100 - 300)",null,{"$f":"CONCATENATE(ReferenceData!$C$5, CHAR(10), ReferenceData!$F$4)","v":"From Q4 2017 (Mbps)\n(Per Interface UserID (CompID))"},null,null,null,"Service Description"]
[]
[null,null,"Client Bandwidth (100 orders/sec – Native throttled)",null,".",null,0.532,null,0.532,null,0.825,null,0.825,null,null,null,100,null,{"$f":"IF($O37>0,(M37*Q37*$O37)/100, \"\")","v":""},null,null,null,"Native Trading throttled client bandwidth including order management + drop copy + post trade bandwidth without market data for JSE market"]
[null,null,null,null,".",null,1,null,1,null,1.25,null,1.25]
[]
[null,null,"SubTotal",null,null,null,null,null,null,null,null,null,null,null,null,null,null,null,{"$f":"S37","v":""}]
[]
[null,null,"Public Market Data"]
[null,null,"MITCH bandwidth for a single Multicast feed"]
[]
[null,null,"Service",null,"Protocols",null,{"$f":"ReferenceData!$C$2","v":"Current EDM Dissemination Bandwidth (Mbps)"},null,{"$f":"ReferenceData!$C$3","v":"From 26 September 2016 (Mbps)"},null,{"$f":"ReferenceData!$C$4","v":"From Q2/Q3 2017 (Mbps)"},null,{"$f":"ReferenceData!$C$5","v":"From Q4 2017 (Mbps)"},null,null,null,null,null,{"$f":"CONCATENATE(ReferenceData!$C$5, CHAR(10), ReferenceData!$F$4)","v":"From Q4 2017 (Mbps)\n(Per Interface UserID (CompID))"},null,null,null,"Service Description"]
[null,null,null,null,null,null,null,null,null,null,null,null,null,null,null,null,null,null,"A Feed",null,"B Feed"]
[]
[null,null,"Throttled MITCH (JSE) – Full Depth",null,".",null,1,null,1,null,1.25,null,1.25,null,null,null,null,null,{"$f":"IF($O48>0, M48*$O48, \"\")","v":""},null,{"$f":"S48","v":""},null,"MITCH multicast feed bandwidth for full depth throttled MITCH service for JSE"]
[null,null,"Un-throttled MITCH (JSE) – Full Depth",null,".",null,1,null,1,null,1.25,null,1.88,null,null,null,null,null,{"$f":"IF($O49>0, M49*$O49, \"\")","v":""},null,{"$f":"S49","v":""},null,"MITCH multicast feed bandwidth for full depth Un-throttled MITCH service for JSE"]
[null,null,"MITCH - Top of Book (BBO)",null,".",null,1,null,1,null,0.95,null,0.95,null,null,null,null,null,{"$f":"IF($O50>0, M50*$O50, \"\")","v":""},null,{"$f":"S50","v":""},null,"MITCH multicast feed bandwidth for top of the book service"]
[]
[null,null,"SubTotal",null,null,null,null,null,null,null,null,null,null,null,null,null,null,null,{"$f":"SUM(S48:S50)","v":0},null,{"$f":"SUM(U48:U50)","v":0}]
[null,null,"Combined SubTotal",null,null,null,null,null,null,null,null,null,null,null,null,null,null,null,{"$f":"SUM(S52,U52)","v":0}]
[]
[]
[null,null,"JSE Trading and Information Services (Real time): SubTotal",null,null,null,null,null,null,null,null,null,null,null,null,null,null,null,{"$f":"S53","v":0}]
[]
[null,"JSE Post-trade Services"]
[]
[]
[null,null,"Service",null,"Protocols",null,{"$f":"ReferenceData!$C$2","v":"Current EDM Dissemination Bandwidth (Mbps)"},null,{"$f":"ReferenceData!$C$3","v":"From 26 September 2016 (Mbps)"},null,{"$f":"ReferenceData!$C$4","v":"From Q2/Q3 2017 (Mbps)"},null,{"$f":"ReferenceData!$C$5","v":"From Q4 2017 (Mbps)"},null,null,null,null,null,{"$f":"CONCATENATE(ReferenceData!$C$5, CHAR(10), ReferenceData!$F$4)","v":"From Q4 2017 (Mbps)\n(Per Interface UserID (CompID))"},null,null,null,"Service Description"]
[]
[null,null,"Real time Clearing and Deal Mgmt (RTC)",null,".",null,1,null,2,null,3,null,1,null,null,null,null,null,{"$f":"IF($O63>0, M63*$O63, \"\")","v":""},null,null,null,"TCP bandwidth requirements per RTC interface(s)"]
[]
[]
[null,null,"JSE Post-trade Services: SubTotal",null,null,null,null,null,null,null,null,null,null,null,null,null,null,null,{"$f":"S63","v":""}]
[]
[null,"JSE End of Day Services"]
[]
[]
[null,null,"Service",null,"Protocols",null,{"$f":"ReferenceData!$C$2","v":"Current EDM Dissemination Bandwidth (Mbps)"},null,{"$f":"ReferenceData!$C$3","v":"From 26 September 2016 (Mbps)"},null,{"$f":"ReferenceData!$C$4","v":"From Q2/Q3 2017 (Mbps)"},null,{"$f":"ReferenceData!$C$5","v":"From Q4 2017 (Mbps)"},null,"Number of Interfaces",null,null,null,{"$f":"CONCATENATE(ReferenceData!$C$5, CHAR(10), ReferenceData!$F$4)","v":"From Q4 2017 (Mbps)\n(Per Interface UserID (CompID))"},null,null,null,"Service Description"]
[]
[null,null,"Equity Derivatives Non Live Market Data (NLMD) Dissemination",null,".",null,1,null,2,null,3,null,1,null,null,null,null,null,{"$f":"IF($O73>0, M73*$O73, \"\")","v":""},null,null,null,"Bandwidth requirements per NLMD interface"]
[]
[]
[null,null,"JSE NLMD Services: SubTotal",null,null,null,null,null,null,null,null,null,null,null,null,null,null,null,{"$f":"S73","v":""}]

{"sheet":"JSEFXDerivMarket","index":3,"n_rows":74,"n_cols":25,"rows_kept":74,"cut":false,"hidden":false,"merged":[[1,1,1,16],[4,2,4,16],[6,2,7,2],[6,14,7,14],[11,2,11,14],[13,2,13,16],[15,2,16,2],[15,4,16,4],[15,6,16,6],[15,8,16,8],[15,10,16,10],[15,12,16,12],[15,14,16,14],[15,16,16,16],[20,2,20,14],[21,2,21,14],[24,2,24,14],[26,1,26,25],[28,1,28,25],[31,2,31,24],[33,20,33,22],[35,20,35,22],[37,2,37,14],[37,20,37,22],[39,2,39,24],[40,2,40,24],[42,2,43,2],[42,4,43,4],[42,6,43,6],[42,8,43,8],[42,10,43,10],[42,12,43,12],[42,14,43,14],[42,20,42,22],[42,24,43,24],[49,2,49,14],[50,2,50,14],[50,20,50,22],[53,2,53,14],[53,20,53,22],[55,1,55,25],[58,20,58,22],[60,20,60,22],[63,2,63,14],[63,20,63,22],[65,1,65,25],[68,20,68,22],[70,20,70,22],[73,2,73,14],[73,20,73,22]]}
[]
[null,"Current Currency Derivatives Market Requirements"]
[]
[]
[null,null,"Current Currency Derivatives Trading Data"]
[]
[null,null,"Service",null,"Protocols",null,{"$f":"ReferenceData!$C$2","v":"Current EDM Dissemination Bandwidth (Mbps)"},null,{"$f":"ReferenceData!$C$3","v":"From 26 September 2016 (Mbps)"},null,{"$f":"ReferenceData!$C$4","v":"From Q2/Q3 2017 (Mbps)"},null,{"$f":"ReferenceData!$C$5","v":"From Q4 2017 (Mbps)"},null,"# Nutron Terminals",null,{"$f":"CONCATENATE(ReferenceData!$C$6, CHAR(10), ReferenceData!$F$2)","v":"Current FXM Dissemination Bandwidth (Mbps)\n(Per Terminal)"}]
[]
[]
[null,null,"Current Number of legacy Nutron Terminals",null,".",null,0.36,null,0.532,null,0.825,null,0.825,null,null,null,{"$f":"IF($O10>0, G10*$O10, \"\")","v":""}]
[]
[null,null,"SubTotal",null,null,null,null,null,null,null,null,null,null,null,null,null,{"$f":"Q10","v":""}]
[]
[null,null,"Current Currency Derivatives Dissemination Data"]
[]
[null,null,"Service",null,"Protocols",null,{"$f":"ReferenceData!$C$2","v":"Current EDM Dissemination Bandwidth (Mbps)"},null,{"$f":"ReferenceData!$C$3","v":"From 26 September 2016 (Mbps)"},null,{"$f":"ReferenceData!$C$4","v":"From Q2/Q3 2017 (Mbps)"},null,{"$f":"ReferenceData!$C$5","v":"From Q4 2017 (Mbps)"},null,"Number of Listeners",null,{"$f":"CONCATENATE(ReferenceData!$C$6, CHAR(10), ReferenceData!$F$2)","v":"Current FXM Dissemination Bandwidth (Mbps)\n(Per Terminal)"}]
[]
[]
[null,null,"Current Number of legacy Derivatives Dissemination Listeners",null,".",null,0.256,null,1,null,1.25,null,1.25,null,null,null,{"$f":"IF($O19>0, G19*$O19, \"\")","v":""}]
[]
[null,null,"SubTotal",null,null,null,null,null,null,null,null,null,null,null,null,null,{"$f":"Q19","v":""}]
[null,null,"Combined SubTotal",null,null,null,null,null,null,null,null,null,null,null,null,null,{"$f":"SUM(Q12,Q21)","v":0}]
[]
[]
[null,null,"Current Currency Derivatives Bandwidth requirements: SubTotal",null,null,null,null,null,null,null,null,null,null,null,null,null,{"$f":"Q22","v":0}]
[]
[null,"Currency Derivatives Market (New ITaC)"]
[]
[null,"JSE Trading and Information Services (Real time)"]
[]
[]
[null,null,"Private Trading Data"]
[]
[null,null,"Service",null,"Protocols",null,{"$f":"ReferenceData!$C$2","v":"Current EDM Dissemination Bandwidth (Mbps)"},null,{"$f":"ReferenceData!$C$3","v":"From 26 September 2016 (Mbps)"},null,{"$f":"ReferenceData!$C$4","v":"From Q2/Q3 2017 (Mbps)"},null,{"$f":"ReferenceData!$C$5","v":"From Q4 2017 (Mbps)"},null,"Number of Interfaces / CompIDs",null,"Order Rate\n(Between 100 - 300)",null,null,null,{"$f":"CONCATENATE(ReferenceData!$C$5, CHAR(10), ReferenceData!$F$4)","v":"From Q4 2017 (Mbps)\n(Per Interface UserID (CompID))"},null,null,null,"Service Description"]
[]
[null,null,"Client Bandwidth (100 orders/sec – Native throttled)",null,".",null,0.532,null,0.532,null,0.825,null,0.825,null,null,null,100,null,null,null,{"$f":"IF($O36>0,(M36*Q36*$O36)/100, \"\")","v":""},null,null,null,"Native Trading throttled client bandwidth including order management + drop copy + post trade bandwidth without market data for JSE market"]
[]
[null,null,"SubTotal",null,null,null,null,null,null,null,null,null,null,null,null,null,null,null,null,null,{"$f":"U36","v":""}]
[]
[null,null,"Public Market Data"]
[null,null,"MITCH bandwidth for a single Multicast feed"]
[]
[null,null,"Service",null,"Protocols",null,{"$f":"ReferenceData!$C$2","v":"Current EDM Dissemination Bandwidth (Mbps)"},null,{"$f":"ReferenceData!$C$3","v":"From 26 September 2016 (Mbps)"},null,{"$f":"ReferenceData!$C$4","v":"From Q2/Q3 2017 (Mbps)"},null,{"$f":"ReferenceData!$C$5","v":"From Q4 2017 (Mbps)"},null,null,null,null,null,null,null,{"$f":"CONCATENATE(ReferenceData!$C$5, CHAR(10), ReferenceData!$F$4)","v":"From Q4 2017 (Mbps)\n(Per Interface UserID (CompID))"},null,null,null,"Service Description"]
[null,null,null,null,null,null,null,null,null,null,null,null,null,null,null,null,null,null,null,null,"A Feed",null,"B Feed"]
[]
[null,null,"Throttled MITCH (JSE) – Full Depth",null,".",null,1,null,1,null,1.25,null,0.91,null,null,null,null,null,null,null,{"$f":"IF($O46>0, M46*$O46, \"\")","v":""},null,{"$f":"U46","v":""},null,"MITCH multicast feed bandwidth for throttled full depth MITCH service for JSE"]
[null,null,"Un-throttled MITCH (JSE) – Full Depth",null,".",null,1,null,1,null,1.25,null,1.02,null,null,null,null,null,null,null,{"$f":"IF($O47>0, M47*$O47, \"\")","v":""},null,{"$f":"U47","v":""},null,"MITCH multicast feed bandwidth for full depth Un-throttled MITCH service for JSE"]
[null,null,"MITCH - Top of Book (BBO)",null,".",null,1,null,1,null,0.95,null,0.7,null,null,null,null,null,null,null,{"$f":"IF($O48>0, M48*$O48, \"\")","v":""},null,{"$f":"U48","v":""},null,"MITCH multicast feed bandwidth for top of the book service"]
[]
[null,null,"SubTotal",null,null,null,null,null,null,null,null,null,null,null,null,null,null,null,null,null,{"$f":"SUM(U46:U48)","v":0},null,{"$f":"SUM(W46:W48)","v":0}]
[null,null,"Combined SubTotal",null,null,null,null,null,null,null,null,null,null,null,null,null,null,null,null,null,{"$f":"SUM(U50:W50)","v":0}]
[]
[]
[null,null,"JSE Trading and Information Services (Real time): SubTotal",null,null,null,null,null,null,null,null,null,null,null,null,null,null,null,null,null,{"$f":"U51","v":0}]
[]
[null,"JSE Post-trade Services"]
[]
[]
[null,null,"Service",null,"Protocols",null,{"$f":"ReferenceData!$C$2","v":"Current EDM Dissemination Bandwidth (Mbps)"},null,{"$f":"ReferenceData!$C$3","v":"From 26 September 2016 (Mbps)"},null,{"$f":"ReferenceData!$C$4","v":"From Q2/Q3 2017 (Mbps)"},null,{"$f":"ReferenceData!$C$5","v":"From Q4 2017 (Mbps)"},null,"Number of Interfaces / CompIDs",null,null,null,null,null,{"$f":"CONCATENATE(ReferenceData!$C$5, CHAR(10), ReferenceData!$F$4)","v":"From Q4 2017 (Mbps)\n(Per Interface UserID (CompID))"},null,null,null,"Service Description"]
[]
[null,null,"Real time Clearing and Deal Mgmt (RTC)",null,".",null,1,null,2,null,3,null,1,null,null,null,null,null,null,null,{"$f":"IF($O61>0,(M61*$O61), \"\")","v":""},null,null,null,"TCP bandwidth requirements per RTC interface(s)"]
[]
[]
[null,null,"JSE Post-trade Services: SubTotal",null,null,null,null,null,null,null,null,null,null,null,null,null,null,null,null,null,{"$f":"U61","v":""}]
[]
[null,"JSE End of Day Services"]
[]
[]
[null,null,"Service",null,"Protocols",null,{"$f":"ReferenceData!$C$2","v":"Current EDM Dissemination Bandwidth (Mbps)"},null,{"$f":"ReferenceData!$C$3","v":"From 26 September 2016 (Mbps)"},null,{"$f":"ReferenceData!$C$4","v":"From Q2/Q3 2017 (Mbps)"},null,{"$f":"ReferenceData!$C$5","v":"From Q4 2017 (Mbps)"},null,null,null,null,null,null,null,{"$f":"CONCATENATE(ReferenceData!$C$5, CHAR(10), ReferenceData!$F$4)","v":"From Q4 2017 (Mbps)\n(Per Interface UserID (CompID))"},null,null,null,"Service Description"]
[]
[null,null,"Equity End of Day Dissemination",null,".",null,1,null,2,null,3,null,1,null,null,null,null,null,null,null,{"$f":"IF($O71>0,(M71*$O71), \"\")","v":""},null,null,null,"Bandwidth requirements per NLMD interface"]
[]
[]
[null,null,"JSE End of Day Services: SubTotal",null,null,null,null,null,null,null,null,null,null,null,null,null,null,null,null,null,{"$f":"U71","v":""}]

{"sheet":"Trading Services","index":4,"n_rows":36,"n_cols":12,"rows_kept":36,"cut":false,"hidden":true,"merged":[[2,4,2,5],[2,7,2,8],[22,4,22,5],[29,4,29,5]]}
[]
[null,"Item","Min Bandwidth","# Interfaces / CompIDs","A","B","Future ITaC Project 1a\nMin Bandwidth (effective Q3 2016)","A","B","Description","."]
[null,"JSE Equity Market Bandwidth (Megabits per inter second)",null,null,"Current production bandwidth effective to Friday 23 Sept 2016",null,null,"Current production bandwidth effective to Monday 26 Sept 2016",null,null,"."]
[null,"Client Bandwidth (100 orders/sec – Native Trading throttled)",0.532,null,null,null,0.75,null,null,"Native Trading throttled client bandwidth including order management + drop copy + post trade bandwidth without market data for JSE market",".","Project 1a - 26 Sept 2016"]
[null,"Client Bandwidth (100 orders/sec – Native Trading un-throttled)",1,null,null,null,1,null,null,"Native Trading un-throttled client bandwidth including order management without market data for JSE market","."]
[null,"Client Bandwidth (100 orders/sec – FIX Trading)",0.878,null,null,null,1.049,null,null,"FIX Trading bandwidth including order management + drop copy + post trade bandwidth without market data for JSE market","."]
[null,"FAST bandwidth for a single Multicast feed (e.g. Feed A only)",null,null,null,null,null,null,null,null,"."]
[null,"Level 1 (incremental for JSE)",0.905,1,{"$f":"D8*C8","v":0.905},{"$f":"D8*C8","v":0.905},1.41,{"$f":"D8*G8","v":1.41},{"$f":"D8*G8","v":1.41},"FAST multicast feed bandwidth for top of the book service for JSE","."]
[null,"Indices (JSE)",0.512,null,null,null,0.512,null,null,"FAST multicast feed bandwidth for Index service for JSE","."]
[null,"News (JSE)",0.512,null,null,null,0.512,null,null,"FAST multicast feed bandwidth for News service for JSE","."]
[null,"MITCH bandwidth for a single Multicast feed (e.g. Feed A only)",null,null,null,null,null,null,null,null,"."]
[null,"MITCH (JSE) – Full Depth",0.893,null,null,null,1.37,null,null,"MITCH multicast feed bandwidth for full depth MITCH service for JSE","."]
[null,"Un-throttled MITCH (JSE) – Full Depth",3.3,null,null,null,3.4,null,null,"MITCH multicast feed bandwidth for full depth Un-throttled MITCH service for JSE","."]
[null,"NSX Equity Market Bandwidth (Megabits per inter second)",null,null,null,null,null,null,null,null,".","ITaC Project 1a - 26 Sept 2016"]
[null,"Client Bandwidth (5 orders/sec – Native Trading throttled)",0.027,null,null,null,0.035,null,null,"Native trading throttled client bandwidth including order management + drop copy + post trade bandwidth without market data for NSX market","."]
[null,"Client Bandwidth (5 orders/sec – FIX Trading)",0.044,null,null,null,0.052,null,null,"FIX Trading client bandwidth including order management + drop copy + post trade bandwidth without market data for NSX market","."]
[null,"FAST bandwidth for a single Multicast feed (e.g. Feed A only)",null,null,null,null,null,null,null,null,"."]
[null,"Level 1 (incremental for NSX)",0.024,null,null,null,0.024,null,null,"FAST multicast feed bandwidth for top of the book services for NSX","."]
[null,"Indices (NSX)",0.067,null,null,null,0.067,null,null,"FAST multicast feed bandwidth for Index service for NSX","."]
[null,"News (NSX)",0.067,null,null,null,0.067,null,null,"FAST multicast feed bandwidth for News service for NSX","."]
[null,"MITCH bandwidth for a single Multicast feed (e.g. Feed A only)",null,null,null,null,null,null,null,null,"."]
[null,"MITCH (NSX)",0.045,null,null,null,0.047,null,null,"MITCH multicast feed bandwidth for full depth MITCH service","."]
[null,"JSE Equity Derivatives Market Bandwidth (Megabits per inter second)",null,null,"n/a",null,null,null,null,null,".","ITaC Project 1b - Q2/3 2017"]
[null,"Client Bandwidth (100 orders/sec – Native Trading throttled)",null,null,null,null,0.825,null,null,"Native Trading throttled client bandwidth including order management + drop copy + post trade bandwidth without market data for JSE market","."]
[null,"Client Bandwidth (100 orders/sec – Native Trading un-throttled)",null,null,null,null,1.1,null,null,"Native Trading un-throttled client bandwidth including order management without market data for JSE market","."]
[null,"MITCH bandwidth for a single Multicast feed (e.g. Feed A only)",null,null,null,null,null,null,null,null,"."]
[null,"MITCH (JSE) – Full Depth",null,null,null,null,1.25,null,null,"MITCH multicast feed bandwidth for full depth MITCH service for JSE","."]
[null,"Un-throttled MITCH (JSE) – Full Depth",null,null,null,null,1.25,null,null,"MITCH multicast feed bandwidth for full depth Un-throttled MITCH service for JSE","."]
[null,"MITCH – Top of Book (BBO)",null,null,null,null,0.95,null,null,"MITCH multicast feed bandwidth for top of the book service for JSE","."]
[null,"JSE Currency Derivatives Market Bandwidth (Megabits per inter second)",null,null,"n/a",null,null,null,null,null,".","ITaC Project 1c - Q3/Q4 2017"]
[null,"Client Bandwidth (100 orders/sec – Native Trading throttled)",null,null,null,null,0.825,null,null,"Native Trading throttled client bandwidth including order management + drop copy + post trade bandwidth without market data for JSE market","."]
[null,"Client Bandwidth (100 orders/sec – Native Trading un-throttled)",null,null,null,null,1.1,null,null,"Native Trading un-throttled client bandwidth including order management without market data for JSE market","."]
[null,"MITCH bandwidth for a single Multicast feed (e.g. Feed A only)",null,null,null,null,null,null,null,null,"."]
[null,"MITCH (JSE) – Full Depth",null,null,null,null,0.91,null,null,"MITCH multicast feed bandwidth for full depth MITCH service for JSE","."]
[null,"Un-throttled MITCH (JSE) – Full Depth",null,null,null,null,0.91,null,null,"MITCH multicast feed bandwidth for full depth Un-throttled MITCH service for JSE","."]
[null,"MITCH – Top of Book (BBO)",null,null,null,null,0.7,null,null,"MITCH multicast feed bandwidth for top of the book service for JSE","."]

{"sheet":"ReferenceData","index":5,"n_rows":202,"n_cols":8,"rows_kept":202,"cut":false,"hidden":true,"merged":[]}
["# Interfaces / CompIDs",null,"Period Descriptions",null,"Term Count","Per Term",null,"Order Rate"]
[0,null,"Current EDM Dissemination Bandwidth (Mbps)",null,"Terminal Count","(Per Terminal)",null,100]
[1,null,"From 26 September 2016 (Mbps)",null,"Listener Count","(Per Listener)",null,101]
[2,null,"From Q2/Q3 2017 (Mbps)",null,"Interface UserID (CompID) Count","(Per Interface UserID (CompID))",null,102]
[3,null,"From Q4 2017 (Mbps)",null,null,null,null,103]
[4,null,"Current FXM Dissemination Bandwidth (Mbps)",null,null,null,null,104]
[5,null,null,null,null,null,null,105]
[6,null,null,null,null,null,null,106]
[7,null,null,null,null,null,null,107]
[8,null,null,null,null,null,null,108]
[9,null,null,null,null,null,null,109]
[10,null,null,null,null,null,null,110]
[11,null,null,null,null,null,null,111]
[12,null,null,null,null,null,null,112]
[13,null,null,null,null,null,null,113]
[14,null,null,null,null,null,null,114]
[15,null,null,null,null,null,null,115]
[16,null,null,null,null,null,null,116]
[17,null,null,null,null,null,null,117]
[18,null,null,null,null,null,null,118]
[19,null,null,null,null,null,null,119]
[20,null,null,null,null,null,null,120]
[21,null,null,null,null,null,null,121]
[22,null,null,null,null,null,null,122]
[23,null,null,null,null,null,null,123]
[24,null,null,null,null,null,null,124]
[25,null,null,null,null,null,null,125]
[26,null,null,null,null,null,null,126]
[27,null,null,null,null,null,null,127]
[28,null,null,null,null,null,null,128]
[29,null,null,null,null,null,null,129]
[30,null,null,null,null,null,null,130]
[31,null,null,null,null,null,null,131]
[32,null,null,null,null,null,null,132]
[33,null,null,null,null,null,null,133]
[34,null,null,null,null,null,null,134]
[35,null,null,null,null,null,null,135]
[36,null,null,null,null,null,null,136]
[37,null,null,null,null,null,null,137]
[38,null,null,null,null,null,null,138]
[39,null,null,null,null,null,null,139]
[40,null,null,null,null,null,null,140]
[41,null,null,null,null,null,null,141]
[42,null,null,null,null,null,null,142]
[43,null,null,null,null,null,null,143]
[44,null,null,null,null,null,null,144]
[45,null,null,null,null,null,null,145]
[46,null,null,null,null,null,null,146]
[47,null,null,null,null,null,null,147]
[48,null,null,null,null,null,null,148]
[49,null,null,null,null,null,null,149]
[50,null,null,null,null,null,null,150]
[51,null,null,null,null,null,null,151]
[52,null,null,null,null,null,null,152]
[53,null,null,null,null,null,null,153]
[54,null,null,null,null,null,null,154]
[55,null,null,null,null,null,null,155]
[56,null,null,null,null,null,null,156]
[57,null,null,null,null,null,null,157]
[58,null,null,null,null,null,null,158]
[59,null,null,null,null,null,null,159]
[60,null,null,null,null,null,null,160]
[61,null,null,null,null,null,null,161]
[62,null,null,null,null,null,null,162]
[63,null,null,null,null,null,null,163]
[64,null,null,null,null,null,null,164]
[65,null,null,null,null,null,null,165]
[66,null,null,null,null,null,null,166]
[67,null,null,null,null,null,null,167]
[68,null,null,null,null,null,null,168]
[69,null,null,null,null,null,null,169]
[70,null,null,null,null,null,null,170]
[71,null,null,null,null,null,null,171]
[72,null,null,null,null,null,null,172]
[73,null,null,null,null,null,null,173]
[74,null,null,null,null,null,null,174]
[75,null,null,null,null,null,null,175]
[76,null,null,null,null,null,null,176]
[77,null,null,null,null,null,null,177]
[78,null,null,null,null,null,null,178]
[79,null,null,null,null,null,null,179]
[80,null,null,null,null,null,null,180]
[81,null,null,null,null,null,null,181]
[82,null,null,null,null,null,null,182]
[83,null,null,null,null,null,null,183]
[84,null,null,null,null,null,null,184]
[85,null,null,null,null,null,null,185]
[86,null,null,null,null,null,null,186]
[87,null,null,null,null,null,null,187]
[88,null,null,null,null,null,null,188]
[89,null,null,null,null,null,null,189]
[90,null,null,null,null,null,null,190]
[91,null,null,null,null,null,null,191]
[92,null,null,null,null,null,null,192]
[93,null,null,null,null,null,null,193]
[94,null,null,null,null,null,null,194]
[95,null,null,null,null,null,null,195]
[96,null,null,null,null,null,null,196]
[97,null,null,null,null,null,null,197]
[98,null,null,null,null,null,null,198]
[99,null,null,null,null,null,null,199]
[100,null,null,null,null,null,null,200]
[null,null,null,null,null,null,null,201]
[null,null,null,null,null,null,null,202]
[null,null,null,null,null,null,null,203]
[null,null,null,null,null,null,null,204]
[null,null,null,null,null,null,null,205]
[null,null,null,null,null,null,null,206]
[null,null,null,null,null,null,null,207]
[null,null,null,null,null,null,null,208]
[null,null,null,null,null,null,null,209]
[null,null,null,null,null,null,null,210]
[null,null,null,null,null,null,null,211]
[null,null,null,null,null,null,null,212]
[null,null,null,null,null,null,null,213]
[null,null,null,null,null,null,null,214]
[null,null,null,null,null,null,null,215]
[null,null,null,null,null,null,null,216]
[null,null,null,null,null,null,null,217]
[null,null,null,null,null,null,null,218]
[null,null,null,null,null,null,null,219]
[null,null,null,null,null,null,null,220]
[null,null,null,null,null,null,null,221]
[null,null,null,null,null,null,null,222]
[null,null,null,null,null,null,null,223]
[null,null,null,null,null,null,null,224]
[null,null,null,null,null,null,null,225]
[null,null,null,null,null,null,null,226]
[null,null,null,null,null,null,null,227]
[null,null,null,null,null,null,null,228]
[null,null,null,null,null,null,null,229]
[null,null,null,null,null,null,null,230]
[null,null,null,null,null,null,null,231]
[null,null,null,null,null,null,null,232]
[null,null,null,null,null,null,null,233]
[null,null,null,null,null,null,null,234]
[null,null,null,null,null,null,null,235]
[null,null,null,null,null,null,null,236]
[null,null,null,null,null,null,null,237]
[null,null,null,null,null,null,null,238]
[null,null,null,null,null,null,null,239]
[null,null,null,null,null,null,null,240]
[null,null,null,null,null,null,null,241]
[null,null,null,null,null,null,null,242]
[null,null,null,null,null,null,null,243]
[null,null,null,null,null,null,null,244]
[null,null,null,null,null,null,null,245]
[null,null,null,null,null,null,null,246]
[null,null,null,null,null,null,null,247]
[null,null,null,null,null,null,null,248]
[null,null,null,null,null,null,null,249]
[null,null,null,null,null,null,null,250]
[null,null,null,null,null,null,null,251]
[null,null,null,null,null,null,null,252]
[null,null,null,null,null,null,null,253]
[null,null,null,null,null,null,null,254]
[null,null,null,null,null,null,null,255]
[null,null,null,null,null,null,null,256]
[null,null,null,null,null,null,null,257]
[null,null,null,null,null,null,null,258]
[null,null,null,null,null,null,null,259]
[null,null,null,null,null,null,null,260]
[null,null,null,null,null,null,null,261]
[null,null,null,null,null,null,null,262]
[null,null,null,null,null,null,null,263]
[null,null,null,null,null,null,null,264]
[null,null,null,null,null,null,null,265]
[null,null,null,null,null,null,null,266]
[null,null,null,null,null,null,null,267]
[null,null,null,null,null,null,null,268]
[null,null,null,null,null,null,null,269]
[null,null,null,null,null,null,null,270]
[null,null,null,null,null,null,null,271]
[null,null,null,null,null,null,null,272]
[null,null,null,null,null,null,null,273]
[null,null,null,null,null,null,null,274]
[null,null,null,null,null,null,null,275]
[null,null,null,null,null,null,null,276]
[null,null,null,null,null,null,null,277]
[null,null,null,null,null,null,null,278]
[null,null,null,null,null,null,null,279]
[null,null,null,null,null,null,null,280]
[null,null,null,null,null,null,null,281]
[null,null,null,null,null,null,null,282]
[null,null,null,null,null,null,null,283]
[null,null,null,null,null,null,null,284]
[null,null,null,null,null,null,null,285]
[null,null,null,null,null,null,null,286]
[null,null,null,null,null,null,null,287]
[null,null,null,null,null,null,null,288]
[null,null,null,null,null,null,null,289]
[null,null,null,null,null,null,null,290]
[null,null,null,null,null,null,null,291]
[null,null,null,null,null,null,null,292]
[null,null,null,null,null,null,null,293]
[null,null,null,null,null,null,null,294]
[null,null,null,null,null,null,null,295]
[null,null,null,null,null,null,null,296]
[null,null,null,null,null,null,null,297]
[null,null,null,null,null,null,null,298]
[null,null,null,null,null,null,null,299]
[null,null,null,null,null,null,null,300]

{"sheet":"Maintenance","index":6,"n_rows":0,"n_cols":0,"rows_kept":0,"cut":false,"hidden":true,"merged":[]}

{"sheet":"Sheet1","index":7,"n_rows":0,"n_cols":0,"rows_kept":0,"cut":false,"hidden":false,"merged":[]}